bitfinex/quotes_BTCUSD_20241205
["timestamp","ask_amount","ask_price","bid_price","bid_amount"]
[1733384255826,0.51944554,102420.0,102390.0,0.28604167]
[1733384256027,0.76324105,102420.0,102400.0,0.1274]
[1733384256240,0.0035293,102410.0,102400.0,0.1274]
[1733384256492,0.46795005,102420.0,102400.0,0.225056]
[1733384256704,0.00352978,102410.0,102400.0,0.225056]
[1733384256890,0.00352978,102410.0,102400.0,0.21603586]
[1733384257099,0.46795005,102420.0,102400.0,0.21603586]
[1733384257100,0.31795005,102420.0,102400.0,0.21603586]
[1733384257308,0.00353022,102410.0,102400.0,0.21603586]
[1733384257521,0.195293,102410.0,102400.0,0.21603586]
[1733384257719,0.87487929,102420.0,102400.0,0.21603586]
[1733384257933,0.00353022,102410.0,102400.0,0.21603586]
[1733384258144,0.195293,102410.0,102400.0,0.21603586]
[1733384258359,0.31795105,102420.0,102400.0,0.52182153]
[1733384258569,0.00353076,102410.0,102400.0,0.41134586]
[1733384258778,0.32360026,102420.0,102400.0,0.41134586]
[1733384258981,0.00353076,102410.0,102400.0,0.21603586]
[1733384259189,0.32360026,102420.0,102400.0,0.21777106]
[1733384259416,0.00353128,102410.0,102400.0,0.21777106]
[1733384259625,0.61322605,102420.0,102400.0,0.21777106]
[1733384259831,0.00353129,102410.0,102400.0,0.21777106]
[1733384260049,0.61322605,102420.0,102400.0,0.21777106]
[1733384260256,0.00353189,102410.0,102400.0,0.21777106]
[1733384260478,0.61111726,102420.0,102400.0,0.21777106]
[1733384260691,0.80640326,102420.0,102400.0,0.21777106]
[1733384260931,0.00353188,102410.0,102400.0,0.21777106]
[1733384261339,0.90640326,102420.0,102400.0,0.21777106]
[1733384261576,0.00353254,102410.0,102400.0,0.21777106]
[1733384261774,0.195293,102410.0,102400.0,0.21777106]
[1733384261980,0.90640626,102420.0,102400.0,0.21777106]
[1733384262186,0.00353253,102410.0,102400.0,0.21777106]
[1733384262388,0.90640626,102420.0,102400.0,0.21777106]
[1733384262647,0.0035333,102410.0,102400.0,0.21777106]
[1733384262837,0.90640626,102420.0,102400.0,0.21777106]
[1733384263096,0.29850234,102410.0,102400.0,0.1813912]
[1733384263309,0.38596341,102410.0,102400.0,0.0993912]
[1733384264006,0.39161675,102410.0,102400.0,0.0993912]
[1733384266448,0.38596341,102410.0,102400.0,0.0993912]
[1733384266886,0.29496905,102410.0,102400.0,0.0993912]
[1733384268890,0.31424645,102410.0,102400.0,0.0993912]
[1733384269178,0.29496905,102410.0,102400.0,0.0993912]
[1733384269816,0.30062377,102410.0,102400.0,0.0993912]
[1733384270251,0.10533077,102410.0,102400.0,0.0993912]
[1733384270474,0.10533077,102410.0,102400.0,0.33886687]
[1733384270700,0.10054385,102410.0,102400.0,0.33886687]
[1733384271836,0.10054385,102410.0,102400.0,0.2283912]
[1733384272067,0.0008678,102410.0,102400.0,0.2283912]
[1733384272303,0.0008678,102410.0,102400.0,0.53417887]
[1733384272959,0.0008678,102410.0,102400.0,0.33886687]
[1733384273187,0.0008678,102410.0,102400.0,0.2283912]
[1733384275322,0.1948464,102420.0,102400.0,0.2283912]
[1733384275585,0.00353338,102410.0,102400.0,0.2283912]
[1733384275729,0.29452245,102420.0,102400.0,0.2283912]
[1733384275908,0.00353337,102410.0,102400.0,0.2283912]
[1733384276108,0.35721608,102420.0,102400.0,0.2283912]
[1733384276342,0.00353336,102410.0,102400.0,0.2283912]
[1733384276544,0.35721608,102420.0,102400.0,0.2283912]
[1733384276758,0.00353336,102410.0,102400.0,0.2283912]
[1733384276965,0.35721608,102420.0,102400.0,0.2283912]
[1733384277172,0.00353335,102410.0,102400.0,0.2283912]
[1733384277383,0.35721608,102420.0,102400.0,0.2283912]
[1733384277575,0.0035334,102410.0,102400.0,0.2283912]
[1733384277777,0.35721608,102420.0,102400.0,0.2283912]
[1733384277999,0.0035334,102410.0,102400.0,0.30048312]
[1733384278228,0.48979645,102420.0,102400.0,0.30048312]
[1733384278449,0.00353344,102410.0,102400.0,0.30048312]
[1733384278688,0.48979645,102420.0,102400.0,0.30048312]
[1733384278902,0.00353343,102410.0,102400.0,0.30048312]
[1733384279147,0.48979645,102420.0,102400.0,0.30048312]
[1733384279367,0.00353353,102410.0,102400.0,0.30048312]
[1733384279576,0.56188837,102420.0,102400.0,0.2283912]
[1733384279781,0.00353355,102410.0,102400.0,0.2283912]
[1733384280006,0.56189637,102420.0,102400.0,0.2283912]
[1733384280222,0.65981559,102420.0,102410.0,0.05]
[1733384280423,0.56189637,102420.0,102410.0,0.147647]
[1733384280635,0.48980445,102420.0,102410.0,0.147647]
[1733384280845,0.56189637,102420.0,102410.0,0.147647]
[1733384281695,0.56276397,102420.0,102410.0,0.147647]
[1733384283643,0.36748197,102420.0,102410.0,0.147647]
[1733384284459,0.10054365,102420.0,102410.0,0.147647]
[1733384284666,0.10615601,102420.0,102410.0,0.147647]
[1733384284886,0.10054365,102420.0,102410.0,0.147647]
[1733384287250,0.40051095,102420.0,102410.0,0.14787555]
[1733384287670,0.40051095,102420.0,102400.0,0.04187734]
[1733384287873,0.10318379,102410.0,102400.0,0.04187734]
[1733384288102,0.09967605,102410.0,102400.0,0.04187734]
[1733384288309,0.29496905,102410.0,102400.0,0.04187734]
[1733384288512,0.29496905,102410.0,102400.0,0.13952734]
[1733384288730,0.09967605,102410.0,102400.0,0.13952734]
[1733384290478,0.09967605,102410.0,102400.0,0.21161926]
[1733384290936,0.09967605,102410.0,102400.0,0.13952734]
[1733384291155,0.0992208,102410.0,102400.0,0.13952734]
[1733384291374,0.0992208,102410.0,102400.0,0.21161926]
[1733384293493,0.0992208,102410.0,102400.0,0.27955546]
[1733384294799,0.0008676,102420.0,102400.0,0.67605918]
[1733384295008,0.0008676,102420.0,102410.0,0.07209192]
[1733384295446,0.0008676,102420.0,102410.0,0.16973892]
[1733384296100,0.0008676,102420.0,102410.0,0.097647]
[1733384296323,0.0008676,102420.0,102410.0,0.16973892]
[1733384299388,0.10054365,102420.0,102410.0,0.097647]
[1733384299843,0.10054365,102420.0,102410.0,0.16973892]
[1733384302159,0.10054365,102420.0,102410.0,0.097647]
[1733384302376,0.10054365,102420.0,102410.0,0.16973892]
[1733384303025,0.10054365,102420.0,102410.0,0.097647]
[1733384303446,0.0008676,102420.0,102410.0,0.5635522]
[1733384303657,0.0008676,102420.0,102410.0,0.56182384]
[1733384306153,0.0008676,102420.0,102410.0,0.66149989]
[1733384306393,0.0008676,102420.0,102410.0,0.83359181]
[1733384306828,0.0008676,102420.0,102410.0,0.79162763]
[1733384307517,0.0008676,102420.0,102410.0,0.78067862]
[1733384309568,0.0008676,102420.0,102410.0,0.93067862]
[1733384312399,0.00021415,102420.0,102410.0,0.93067862]
[1733384315361,0.00021415,102420.0,102410.0,1.00175472]
[1733384316228,0.00021415,102420.0,102410.0,0.65789483]
[1733384316451,0.00021415,102420.0,102410.0,0.6387161]
[1733384316674,0.00021415,102420.0,102410.0,0.3187231]
[1733384316907,0.00021415,102420.0,102410.0,0.39081502]
[1733384317134,0.00021415,102420.0,102410.0,0.3187231]
[1733384317345,0.19548815,102420.0,102410.0,0.39081502]
[1733384317559,0.00021415,102420.0,102410.0,0.39255002]
[1733384317764,0.00021415,102420.0,102410.0,0.3204581]
[1733384318398,0.3730642,102420.0,102410.0,0.3204581]
[1733384319452,0.3730642,102420.0,102410.0,0.249382]
[1733384319920,0.4194642,102420.0,102410.0,0.249382]
[1733384321006,0.5694642,102420.0,102410.0,0.249382]
[1733384321871,0.6793347,102420.0,102410.0,0.249382]
[1733384322333,0.8023347,102420.0,102410.0,0.249382]
[1733384322563,0.70476577,102420.0,102410.0,0.249382]
[1733384322783,0.90212055,102420.0,102410.0,0.249382]
[1733384323213,0.91199105,102420.0,102410.0,0.249382]
[1733384323440,0.81199105,102420.0,102410.0,0.249382]
[1733384324738,0.70212055,102420.0,102410.0,0.249382]
[1733384324982,0.80003977,102420.0,102410.0,0.02931568]
[1733384325218,0.195293,102410.0,102400.0,0.001735]
[1733384325442,0.55892542,102410.0,102400.0,0.001735]
[1733384325656,0.55333955,102410.0,102400.0,0.001735]
[1733384325863,0.65125877,102410.0,102400.0,0.001735]
[1733384330294,0.54138827,102410.0,102400.0,0.001735]
[1733384330507,0.65125877,102410.0,102400.0,0.001735]
[1733384333246,0.67068765,102410.0,102400.0,0.001735]
[1733384333877,0.57276843,102410.0,102400.0,0.001735]
[1733384334084,0.66289793,102410.0,102400.0,0.001735]
[1733384334293,0.66289793,102410.0,102400.0,0.099385]
[1733384334502,0.56289793,102410.0,102400.0,0.099385]
[1733384334719,0.66289793,102410.0,102400.0,0.099385]
[1733384334929,0.76081715,102410.0,102400.0,0.099385]
[1733384335585,0.87068765,102410.0,102400.0,0.099385]
[1733384338603,0.76081715,102410.0,102400.0,0.099385]
[1733384340199,0.87068765,102410.0,102400.0,0.099385]
[1733384341692,0.76081715,102410.0,102400.0,0.099385]
[1733384342987,0.56289793,102410.0,102400.0,0.099385]
[1733384343198,0.14210493,102410.0,102400.0,0.099385]
[1733384343650,0.14210493,102410.0,102400.0,0.2092555]
[1733384343886,0.14210493,102410.0,102400.0,0.4806675]
[1733384343887,0.04242888,102410.0,102400.0,0.4806675]
[1733384344087,0.023,102410.0,102400.0,0.4806675]
[1733384347144,0.1738675,102420.0,102400.0,0.50470757]
[1733384347349,0.1738675,102420.0,102410.0,0.3051635]
[1733384347557,0.27354355,102420.0,102400.0,0.19952507]
[1733384347769,0.27354355,102420.0,102400.0,0.10187307]
[1733384347980,0.66410155,102420.0,102400.0,0.10187307]
[1733384348182,0.46881855,102420.0,102400.0,0.10187307]
[1733384348414,0.66410255,102420.0,102400.0,0.10187307]
[1733384349050,0.66410255,102420.0,102400.0,0.09765]
[1733384349051,0.09967605,102410.0,102400.0,0.09765]
[1733384349266,0.55483955,102410.0,102400.0,0.09765]
[1733384349706,0.75483955,102410.0,102400.0,0.09765]
[1733384349923,0.88663955,102410.0,102400.0,0.09765]
[1733384353473,0.88663955,102410.0,102400.0,0.0993846]
[1733384353704,0.98542607,102410.0,102400.0,0.0993846]
[1733384355219,1.00532947,102410.0,102400.0,0.0993846]
[1733384356708,0.90532947,102410.0,102400.0,0.0993846]
[1733384359380,0.91553396,102410.0,102400.0,0.0993846]
[1733384362044,0.91553396,102410.0,102400.0,0.09887673]
[1733384369332,0.445312,102400.0,102390.0,0.08096211]
[1733384369529,0.62523891,102400.0,102390.0,0.08096211]
[1733384369954,0.82056391,102400.0,102380.0,0.00191131]
[1733384370168,0.10312722,102390.0,102380.0,0.00191131]
[1733384370384,0.29500705,102390.0,102380.0,0.00191131]
[1733384370826,0.29500705,102390.0,102380.0,0.09958131]
[1733384371951,0.30576962,102390.0,102380.0,0.09958131]
[1733384373034,0.51564012,102390.0,102380.0,0.09958131]
[1733384373443,0.59184012,102390.0,102380.0,0.09958131]
[1733384374281,0.48196962,102390.0,102380.0,0.09958131]
[1733384374702,0.62503392,102390.0,102380.0,0.09958131]
[1733384375173,0.78280442,102390.0,102380.0,0.09958131]
[1733384375400,0.67293392,102390.0,102380.0,0.09958131]
[1733384377406,0.78280442,102390.0,102380.0,0.09958131]
[1733384377644,0.7926142,102390.0,102380.0,0.09958131]
[1733384378562,0.6926142,102390.0,102380.0,0.09958131]
[1733384379664,0.71238601,102390.0,102380.0,0.09958131]
[1733384380355,0.98506051,102390.0,102380.0,0.04097631]
[1733384380569,1.03192598,102390.0,102380.0,3.1e-07]
[1733384380785,1.03292598,102390.0,102380.0,3.1e-07]
[1733384381003,1.01025148,102390.0,102380.0,3.1e-07]
[1733384381462,0.1,102370.0,102360.0,0.001734]
[1733384381665,0.92081857,102370.0,102360.0,0.001734]
[1733384382775,1.09654407,102370.0,102360.0,0.001734]
[1733384383218,0.99654407,102370.0,102360.0,0.001734]
[1733384383648,0.70827357,102370.0,102360.0,0.001734]
[1733384383900,0.09967605,102370.0,102360.0,0.001734]
[1733384384322,0.09967605,102370.0,102360.0,0.3874925]
[1733384384543,0.09967605,102370.0,102360.0,0.277622]
[1733384387642,0.09967605,102370.0,102360.0,0.375312]
[1733384390321,0.09967605,102370.0,102360.0,0.179924]
[1733384392756,0.29504505,102370.0,102360.0,0.099424]
[1733384392970,0.39504505,102370.0,102360.0,0.099424]
[1733384393200,0.63574185,102370.0,102360.0,0.099424]
[1733384393409,0.67587135,102370.0,102360.0,0.099424]
[1733384393888,0.47823769,102370.0,102360.0,0.099424]
[1733384394551,0.24967605,102370.0,102360.0,0.592853]
[1733384394801,0.15,102370.0,102360.0,0.592853]
[1733384395474,0.15,102370.0,102360.0,0.638253]
[1733384395699,0.15,102370.0,102360.0,0.5283825]
[1733384396128,0.15,102370.0,102360.0,0.638253]
[1733384399679,0.15,102370.0,102360.0,0.64810893]
[1733384400137,0.15,102370.0,102360.0,0.53823843]
[1733384401057,0.24967605,102370.0,102360.0,0.43800899]
[1733384401506,0.24967605,102370.0,102360.0,0.54787949]
[1733384401970,0.24967605,102370.0,102360.0,0.43800899]
[1733384402180,0.24967605,102370.0,102360.0,0.54787949]
[1733384402609,0.24967605,102370.0,102360.0,0.43800899]
[1733384404206,0.24967605,102370.0,102360.0,0.54787949]
[1733384405498,0.24967605,102370.0,102360.0,0.43800899]
[1733384406832,0.24967605,102370.0,102360.0,0.63800899]
[1733384407949,0.15,102370.0,102360.0,0.85774999]
[1733384408171,0.15,102370.0,102360.0,0.93586401]
[1733384409267,0.15,102370.0,102360.0,0.82599351]
[1733384409522,0.15,102370.0,102360.0,0.79457949]
[1733384410381,0.15,102370.0,102360.0,0.90444999]
[1733384410596,0.15,102370.0,102360.0,0.68470899]
[1733384410830,0.15,102370.0,102360.0,0.79457949]
[1733384411499,0.15,102370.0,102360.0,0.68470899]
[1733384411930,0.15,102370.0,102360.0,0.90444999]
[1733384412213,0.26476281,102370.0,102360.0,0.79457949]
[1733384412449,0.24967605,102370.0,102360.0,0.79457949]
[1733384414452,0.24967605,102370.0,102360.0,0.8045699]
[1733384415075,0.15,102370.0,102360.0,0.8045699]
[1733384424338,0.15,102370.0,102360.0,0.9144404]
[1733384424575,0.05364889,102370.0,102360.0,1.36411645]
[1733384424832,0.0008676,102380.0,102370.0,0.522369]
[1733384425049,0.0008676,102380.0,102370.0,0.84178605]
[1733384425258,0.00098195,102390.0,102380.0,0.19535]
[1733384425446,0.00098195,102390.0,102380.0,0.46556301]
[1733384425744,0.00098195,102390.0,102380.0,0.67138002]
[1733384426691,0.00098195,102390.0,102380.0,0.87105607]
[1733384426899,0.15,102400.0,102390.0,0.219741]
[1733384427113,0.15,102400.0,102390.0,0.490272]
[1733384427378,0.15,102400.0,102390.0,0.587938]
[1733384429475,0.15,102400.0,102390.0,0.368197]
[1733384429668,0.15,102400.0,102390.0,0.60744971]
[1733384429989,0.15,102400.0,102390.0,0.38770871]
[1733384430199,0.15,102400.0,102390.0,0.60744971]
[1733384431594,0.15,102400.0,102390.0,0.11717771]
[1733384431811,0.15,102400.0,102390.0,0.59776592]
[1733384432019,0.15,102400.0,102390.0,0.59603753]
[1733384432704,0.1508676,102400.0,102390.0,0.35678482]
[1733384432911,0.1508676,102400.0,102390.0,0.57652582]
[1733384434136,0.1508676,102400.0,102390.0,0.58661932]
[1733384434741,0.1508676,102400.0,102390.0,0.66901932]
[1733384437111,0.0008676,102400.0,102390.0,0.66901932]
[1733384440613,0.0008676,102400.0,102390.0,0.47674882]
[1733384440997,0.0008676,102400.0,102390.0,0.66821932]
[1733384442110,0.0008676,102400.0,102390.0,0.81821932]
[1733384444684,0.0008676,102400.0,102390.0,1.01789537]
[1733384444906,0.0008676,102400.0,102390.0,1.11789537]
[1733384445561,0.0008676,102400.0,102390.0,0.92138265]
[1733384445790,0.0008676,102400.0,102390.0,1.33998265]
[1733384446228,0.0008676,102400.0,102390.0,1.15604265]
[1733384446444,0.0812676,102400.0,102390.0,0.9464961]
[1733384448777,0.0812676,102400.0,102390.0,0.5278961]
[1733384448986,0.0812676,102400.0,102390.0,0.528467]
[1733384449875,0.0008676,102400.0,102390.0,0.528467]
[1733384450533,0.0008676,102400.0,102390.0,0.6383375]
[1733384453737,0.0008676,102400.0,102390.0,0.7171375]
[1733384454414,0.0008676,102400.0,102390.0,0.81681355]
[1733384455926,0.0008676,102400.0,102390.0,0.81854855]
[1733384456138,0.0008676,102400.0,102390.0,0.73974855]
[1733384459344,0.0008676,102400.0,102390.0,0.76995998]
[1733384460362,0.0008676,102400.0,102390.0,0.56041343]
[1733384460567,0.0767676,102400.0,102390.0,0.530202]
[1733384460772,0.0767676,102400.0,102390.0,0.4203315]
[1733384460978,0.0767676,102400.0,102390.0,0.530202]
[1733384464164,0.0767676,102400.0,102390.0,0.53020199]
[1733384464462,0.0767676,102400.0,102390.0,0.24996589]
[1733384464463,0.17644365,102400.0,102390.0,0.24996589]
[1733384464637,0.41695565,102400.0,102390.0,0.24996589]
[1733384465711,0.43995565,102400.0,102390.0,0.24996589]
[1733384465927,0.46791203,102400.0,102390.0,0.24996589]
[1733384466137,0.43995565,102400.0,102390.0,0.24996588]
[1733384466578,0.53787487,102400.0,102390.0,0.24996588]
[1733384467268,0.43995565,102400.0,102390.0,0.24996588]
[1733384467896,0.24464365,102400.0,102390.0,0.24996588]
[1733384468113,0.24464365,102400.0,102390.0,0.55516738]
[1733384468347,0.24464365,102400.0,102390.0,0.44529688]
[1733384468785,0.24464365,102400.0,102390.0,0.55516738]
[1733384469011,0.0997676,102400.0,102390.0,0.55516738]
[1733384469624,0.0238676,102400.0,102390.0,0.55516738]
[1733384473921,0.0238676,102400.0,102390.0,0.56502458]
[1733384475189,0.0238676,102400.0,102390.0,1.51657113]
[1733384475425,3e-07,102410.0,102400.0,0.7916]
[1733384475695,0.0008675,102420.0,102410.0,0.2785]
[1733384475903,0.0008675,102420.0,102410.0,0.59848792]
[1733384476147,0.0008675,102420.0,102410.0,0.89142792]
[1733384476377,0.1508675,102430.0,102420.0,0.2]
[1733384476618,0.0008673,102440.0,102430.0,0.713855]
[1733384476838,0.00103931,102440.0,102430.0,0.92397241]
[1733384477089,0.00103931,102440.0,102430.0,1.0216004]
[1733384477291,0.00103931,102440.0,102430.0,1.2216004]
[1733384477526,0.00103931,102440.0,102430.0,1.22160039]
[1733384478426,0.00103931,102440.0,102430.0,1.22160038]
[1733384478871,0.00103931,102440.0,102430.0,1.02192433]
[1733384479081,0.00103931,102440.0,102430.0,0.91205383]
[1733384479322,0.00103931,102440.0,102430.0,0.91205382]
[1733384480179,0.00103931,102440.0,102430.0,0.91205381]
[1733384481868,0.00103931,102440.0,102430.0,0.49345381]
[1733384482097,0.00103931,102440.0,102430.0,0.4934538]
[1733384486921,0.00103931,102440.0,102430.0,0.49345379]
[1733384487797,0.00103931,102440.0,102430.0,0.60332429]
[1733384488863,0.00103931,102440.0,102430.0,0.60332428]
[1733384490792,0.00103931,102440.0,102430.0,0.65332428]
[1733384490999,0.00103931,102440.0,102430.0,1.07192428]
[1733384492982,0.00103931,102440.0,102430.0,1.07192427]
[1733384494347,7.503e-05,102440.0,102430.0,1.07192427]
[1733384496551,7.503e-05,102440.0,102430.0,1.07192426]
[1733384498226,7.503e-05,102440.0,102430.0,1.07192425]
[1733384500009,7.503e-05,102440.0,102430.0,0.65332425]
[1733384502843,0.0791673,102450.0,102440.0,0.04992497]
[1733384503106,0.0791673,102450.0,102440.0,0.16036622]
[1733384503324,0.0791673,102450.0,102440.0,0.25971183]
[1733384503544,0.0791673,102450.0,102440.0,0.25798422]
[1733384503769,0.0791673,102450.0,102440.0,0.45322022]
[1733384504217,0.0008673,102450.0,102440.0,0.45322022]
[1733384504480,0.0008673,102450.0,102440.0,0.45322021]
[1733384505659,0.0008673,102450.0,102440.0,0.45292861]
[1733384506118,0.0008673,102450.0,102440.0,0.89892061]
[1733384506567,0.0008673,102450.0,102440.0,1.52706715]
[1733384506819,0.0008673,102450.0,102440.0,1.41719665]
[1733384507263,0.0008673,102450.0,102440.0,1.41719664]
[1733384508997,0.0008673,102450.0,102440.0,1.52706714]
[1733384509282,0.0008673,102450.0,102440.0,1.62706713]
[1733384509961,0.0008673,102450.0,102440.0,1.28457976]
[1733384510171,0.0008673,102450.0,102440.0,1.49966762]
[1733384510404,0.0008673,102450.0,102440.0,1.38979711]
[1733384510633,0.0008673,102450.0,102440.0,1.46755525]
[1733384511091,0.0008673,102450.0,102440.0,1.47750352]
[1733384512636,0.0008673,102450.0,102440.0,1.47750351]
[1733384513116,0.0008673,102450.0,102440.0,1.58737401]
[1733384513325,0.0008673,102450.0,102440.0,1.47750351]
[1733384513531,0.0008673,102450.0,102440.0,1.62750351]
[1733384514593,0.0008673,102450.0,102440.0,1.42956126]
[1733384515054,0.0778673,102450.0,102440.0,1.01096125]
[1733384515286,0.07549339,102450.0,102440.0,1.01096125]
[1733384517186,0.07549339,102450.0,102440.0,0.76662695]
[1733384517416,0.09849339,102450.0,102440.0,0.76662695]
[1733384517623,0.09849339,102450.0,102440.0,0.65675645]
[1733384517857,0.09849339,102450.0,102440.0,0.76662695]
[1733384518727,0.09849339,102450.0,102440.0,0.76662694]
[1733384524298,0.023,102450.0,102440.0,0.76662694]
[1733384525263,0.023,102450.0,102440.0,0.76662693]
[1733384526356,0.0238669,102450.0,102440.0,0.76662693]
[1733384527282,0.0238669,102450.0,102440.0,0.96630298]
[1733384527504,0.0238669,102450.0,102440.0,1.07617348]
[1733384528630,0.0008669,102450.0,102440.0,1.07617348]
[1733384529082,0.0008669,102450.0,102440.0,1.10631184]
[1733384529300,0.0008669,102450.0,102440.0,1.10631183]
[1733384529953,0.0008669,102450.0,102440.0,1.52491183]
[1733384532461,0.0008669,102450.0,102440.0,1.54468594]
[1733384532906,0.0008669,102450.0,102440.0,1.54468593]
[1733384533353,9e-07,102450.0,102440.0,1.64468593]
[1733384533563,9e-07,102450.0,102440.0,1.72638593]
[1733384533995,9e-07,102450.0,102440.0,1.77228593]
[1733384535533,9e-07,102450.0,102440.0,1.77228592]
[1733384536246,9e-07,102450.0,102440.0,1.79684979]
[1733384537126,9e-07,102450.0,102440.0,1.64468592]
[1733384538858,9e-07,102450.0,102440.0,1.66924979]
[1733384539268,9e-07,102450.0,102440.0,1.60924979]
[1733384539684,9e-07,102450.0,102440.0,1.60924978]
[1733384540568,9e-07,102450.0,102440.0,1.50924978]
[1733384540779,9e-07,102450.0,102440.0,1.60924978]
[1733384540986,9e-07,102450.0,102440.0,1.58468591]
[1733384541201,9e-07,102450.0,102440.0,1.60924978]
[1733384541437,9e-07,102450.0,102440.0,1.58468591]
[1733384541678,9e-07,102450.0,102440.0,1.48468591]
[1733384541917,9e-07,102450.0,102440.0,1.60914978]
[1733384542809,0.0238671,102460.0,102440.0,1.60914978]
[1733384542810,0.01093455,102460.0,102450.0,0.1]
[1733384543020,0.01093455,102460.0,102450.0,0.66932288]
[1733384543248,0.01093455,102460.0,102450.0,0.86281267]
[1733384545095,0.01093455,102460.0,102450.0,1.28141267]
[1733384545324,0.01093455,102460.0,102450.0,1.28141266]
[1733384546496,5.5e-07,102460.0,102450.0,1.28141266]
[1733384547395,0.08216785,102470.0,102450.0,1.37630571]
[1733384547798,0.08216785,102470.0,102460.0,0.11159767]
[1733384548024,0.08216785,102470.0,102460.0,0.29509478]
[1733384548251,0.08216785,102470.0,102460.0,0.50927368]
[1733384549145,0.08216785,102470.0,102460.0,0.49342785]
[1733384551252,0.08216785,102470.0,102460.0,0.49342784]
[1733384553099,0.00536359,102500.0,102480.0,0.1]
[1733384553324,0.1036153,102490.0,102480.0,0.3927976]
[1733384553549,0.10026305,102490.0,102480.0,0.5879476]
[1733384554223,0.10026305,102490.0,102480.0,0.4932976]
[1733384554471,0.10026305,102490.0,102480.0,0.2981506]
[1733384554931,0.10026305,102490.0,102480.0,0.4933106]
[1733384555163,0.10026305,102490.0,102480.0,0.56527928]
[1733384555454,0.10563041,102490.0,102480.0,0.56527928]
[1733384555673,0.10026305,102490.0,102480.0,0.49331059]
[1733384556151,0.22846305,102490.0,102480.0,0.49331059]
[1733384557051,0.22846305,102490.0,102480.0,0.56527928]
[1733384557965,0.22846305,102490.0,102480.0,0.49331059]
[1733384558419,0.22846305,102490.0,102480.0,0.56527928]
[1733384558856,0.22846305,102490.0,102480.0,0.56527927]
[1733384559361,0.22846305,102490.0,102480.0,0.49331058]
[1733384560509,0.22846305,102490.0,102480.0,0.66477927]
[1733384561215,0.22846305,102490.0,102480.0,0.59281058]
[1733384561891,0.22846305,102490.0,102480.0,0.66477926]
[1733384563531,0.22846305,102490.0,102480.0,0.59281057]
[1733384563755,0.22836305,102490.0,102480.0,0.59281057]
[1733384564437,0.22836305,102490.0,102480.0,0.66477926]
[1733384564664,0.18026305,102490.0,102480.0,0.66477926]
[1733384564888,0.18026305,102490.0,102480.0,0.66477925]
[1733384565332,0.18026305,102490.0,102480.0,0.62477925]
[1733384566698,0.18026305,102490.0,102480.0,0.69674794]
[1733384568285,0.18026305,102490.0,102480.0,0.55281056]
[1733384568945,0.18026305,102490.0,102480.0,0.55281055]
[1733384569885,0.20326305,102490.0,102480.0,0.55281055]
[1733384570111,0.20326305,102490.0,102480.0,0.62477924]
[1733384570338,0.023587,102490.0,102480.0,0.69674793]
[1733384570560,0.023587,102490.0,102480.0,0.62477924]
[1733384571339,0.023587,102490.0,102480.0,0.62477923]
[1733384572503,0.023587,102490.0,102480.0,0.72477923]
[1733384572741,0.023587,102490.0,102480.0,0.72651243]
[1733384572968,0.0244536,102490.0,102480.0,0.72651243]
[1733384575315,0.0244536,102490.0,102480.0,0.78324352]
[1733384575783,0.0244536,102490.0,102480.0,0.78324351]
[1733384576767,0.0244536,102490.0,102480.0,0.71127482]
[1733384577000,0.0244536,102490.0,102480.0,0.72651242]
[1733384577397,0.0244536,102490.0,102480.0,0.62651242]
[1733384577663,0.0244536,102490.0,102480.0,0.72651242]
[1733384578207,0.0244536,102490.0,102480.0,0.50495934]
[1733384578868,0.0244536,102490.0,102480.0,0.51722811]
[1733384579081,0.12412965,102490.0,102480.0,0.39454373]
[1733384579297,0.20162965,102490.0,102480.0,0.39454372]
[1733384579687,0.1513057,102490.0,102480.0,0.39454372]
[1733384581028,0.1513057,102490.0,102480.0,0.46651241]
[1733384581257,0.1513057,102490.0,102480.0,0.39454372]
[1733384582915,0.1513057,102490.0,102480.0,0.46651241]
[1733384583567,0.05162965,102490.0,102480.0,0.46651241]
[1733384583792,0.0792,102500.0,102490.0,0.0995]
[1733384584036,0.17887605,102500.0,102490.0,0.1720392]
[1733384584271,0.09967605,102500.0,102490.0,0.4647342]
[1733384584976,0.09967605,102500.0,102490.0,0.6647342]
[1733384587912,0.09967605,102500.0,102490.0,0.66473419]
[1733384588593,0.12457598,102510.0,102500.0,0.195121]
[1733384588862,0.22425203,102510.0,102500.0,0.2932525]
[1733384589304,0.09985203,102510.0,102500.0,0.46472119]
[1733384589927,0.09985203,102510.0,102500.0,0.46472118]
[1733384591101,0.09985203,102510.0,102500.0,0.53668987]
[1733384591363,0.09985203,102510.0,102500.0,0.66708987]
[1733384592220,0.27317194,102580.0,102560.0,0.12262979]
[1733384592442,0.19504,102550.0,102520.0,0.390166]
[1733384592674,0.00865829,102540.0,102520.0,0.58524]
[1733384592895,0.00865829,102530.0,102520.0,0.292616]
[1733384593112,0.46204769,102550.0,102520.0,0.487699]
[1733384593325,0.00865829,102540.0,102520.0,0.492616]
[1733384593584,0.00865829,102530.0,102520.0,0.492616]
[1733384593843,0.07196869,102540.0,102520.0,0.492616]
[1733384594042,0.00865718,102530.0,102520.0,0.492616]
[1733384594323,0.07196869,102540.0,102520.0,0.492616]
[1733384594533,0.00865709,102530.0,102520.0,0.492616]
[1733384594761,0.07196869,102540.0,102520.0,0.492616]
[1733384594999,0.10500353,102530.0,102520.0,0.297542]
[1733384595237,0.17164474,102530.0,102520.0,0.297542]
[1733384597879,0.09967605,102530.0,102520.0,0.297542]
[1733384600094,0.19934382,102530.0,102520.0,0.297542]
[1733384600322,0.37280689,102530.0,102520.0,0.297542]
[1733384600538,0.47065301,102530.0,102520.0,0.297542]
[1733384600752,0.46455486,102530.0,102520.0,0.297542]
[1733384600938,0.48980917,102530.0,102520.0,0.297542]
[1733384601815,0.41784048,102530.0,102520.0,0.297542]
[1733384602264,0.48980917,102530.0,102520.0,0.297542]
[1733384602499,0.48926053,102530.0,102520.0,0.297542]
[1733384602947,0.12438172,102530.0,102520.0,0.297542]
[1733384603827,0.31944572,102530.0,102520.0,0.297542]
[1733384604937,0.12438172,102530.0,102520.0,0.297542]
[1733384605407,0.12438172,102530.0,102520.0,0.36951069]
[1733384605671,0.12438172,102530.0,102520.0,0.492625]
[1733384606135,0.10577385,102530.0,102520.0,0.56459369]
[1733384606369,0.09967605,102530.0,102520.0,0.68889369]
[1733384606600,0.09967605,102530.0,102520.0,0.616925]
[1733384606833,0.09867605,102530.0,102520.0,0.616925]
[1733384607049,0.09867605,102530.0,102520.0,0.2992744]
[1733384607263,0.20824229,102530.0,102520.0,0.2992744]
[1733384607493,0.20214475,102530.0,102520.0,0.2992744]
[1733384607720,0.11032357,102530.0,102520.0,0.2992744]
[1733384607933,0.11118977,102530.0,102520.0,0.2992744]
[1733384609105,0.10564029,102530.0,102520.0,0.2992744]
[1733384609326,0.11118977,102530.0,102520.0,0.2992744]
[1733384609567,0.11118977,102530.0,102510.0,0.2028391]
[1733384609783,0.00327844,102520.0,102510.0,0.3979411]